bitfinex/quotes_ETHUSD_20250519
["timestamp","ask_amount","ask_price","bid_price","bid_amount"]
[1747650416176,12.48703497,2405.6,2405.4,0.8006]
[1747650416597,4.15713988,2405.5,2405.4,0.8006]
[1747650417981,4.15713988,2405.5,2405.4,0.97231486]
[1747650419011,5.82155514,2405.5,2405.4,0.97231486]
[1747650419175,5.82155514,2405.5,2405.4,0.17171486]
[1747650419371,5.86307288,2405.5,2405.4,0.17171486]
[1747650419577,5.82155514,2405.5,2405.4,0.17171486]
[1747650419778,5.86307288,2405.5,2405.4,0.17171486]
[1747650422002,13.86307288,2405.5,2405.4,0.17171486]
[1747650422334,14.37155514,2405.5,2405.4,0.17171486]
[1747650422829,33.11395514,2405.5,2405.4,0.17171486]
[1747650423033,36.75899223,2405.5,2405.4,0.17171486]
[1747650423200,12.1576584,2405.2,2405.1,0.1]
[1747650423401,20.5006584,2405.2,2405.1,0.1]
[1747650423904,4.1576584,2405.2,2405.1,0.1]
[1747650424110,20.8006584,2405.2,2405.1,0.1]
[1747650425460,1.66441526,2405.5,2405.1,0.1]
[1747650425594,4.15748555,2405.3,2405.2,0.8157]
[1747650425801,4.15748555,2405.3,2405.2,0.98741196]
[1747650426212,4.15748555,2405.3,2405.2,0.17171196]
[1747650426415,13.75352125,2405.3,2405.2,0.17171196]
[1747650427112,12.1576584,2405.2,2405.1,0.1]
[1747650427331,20.5016584,2405.2,2405.1,0.1]
[1747650431243,49.0786584,2405.2,2405.1,0.1]
[1747650431457,49.8346584,2405.2,2405.1,0.1]
[1747650431611,53.9328511,2405.2,2405.1,0.1]
[1747650432444,59.3892311,2405.2,2405.1,0.0992]
[1747650432843,53.9328511,2405.2,2405.1,0.0992]
[1747650433042,57.9288821,2405.2,2405.1,0.0992]
[1747650433750,4.15921474,2404.3,2404.2,0.21675774]
[1747650433907,20.81621474,2404.3,2404.2,0.21675774]
[1747650434232,4.15910151,2404.4,2404.2,0.21675774]
[1747650434446,4.15921474,2404.3,2404.2,0.21675774]
[1747650434749,12.15807704,2405.0,2404.2,0.21675774]
[1747650434948,12.46831093,2404.9,2404.5,0.7521]
[1747650435257,17.957,2405.2,2404.5,0.7521]
[1747650435258,17.957,2405.2,2404.5,1.2432229]
[1747650435411,26.267,2405.2,2404.4,0.7521]
[1747650435729,12.47183853,2405.1,2404.7,4.15848464]
[1747650435932,12.47183853,2405.1,2404.6,4.15861459]
[1747650436109,12.47183853,2405.1,2404.7,0.803]
[1747650436313,30.42673093,2405.2,2404.7,4.9614287]
[1747650436541,4.15722026,2405.5,2405.0,4.15791444]
[1747650436740,8.312,2405.5,2405.0,0.7896]
[1747650436925,12.47107366,2405.6,2405.0,0.7896]
[1747650437250,4.15704133,2405.6,2405.2,4.15764439]
[1747650437606,4.15730717,2405.5,2405.3,0.8056]
[1747650437730,4.15705163,2405.6,2405.3,0.8056]
[1747650437942,4.15716845,2405.5,2405.3,0.8056]
[1747650438663,12.46887066,2405.7,2405.3,0.8056]
[1747650438847,4.15714634,2405.5,2405.3,0.8056]
[1747650440239,4.15703922,2405.6,2405.3,0.8056]
[1747650440756,4.15715852,2405.5,2405.3,0.8056]
[1747650441762,4.15731271,2405.4,2405.3,0.8056]
[1747650441968,4.15724195,2405.5,2405.3,0.8056]
[1747650442123,4.15731271,2405.4,2405.3,0.8056]
[1747650442661,4.15723862,2405.5,2405.3,0.8056]
[1747650442867,4.15706155,2405.6,2405.3,0.8056]
[1747650443062,4.15724271,2405.5,2405.3,0.8056]
[1747650443266,4.15725829,2405.5,2405.3,0.8056]
[1747650444668,4.15731271,2405.4,2405.3,0.8056]
[1747650446142,8.312,2405.7,2405.3,0.8056]
[1747650446343,12.46673592,2405.8,2405.3,5.45933843]
[1747650446648,12.4198764,2405.7,2405.3,5.45933843]
[1747650446952,8.309,2405.9,2405.6,0.8144]
[1747650447156,12.4171931,2406.1,2405.6,4.97121849]
[1747650447461,4.15636427,2406.0,2405.6,5.88415402]
[1747650448481,12.42011299,2406.1,2405.7,4.15670491]
[1747650448642,8.264,2406.1,2405.7,4.32824187]
[1747650448973,8.264,2406.1,2405.7,4.32816993]
[1747650449282,8.309,2406.2,2405.8,0.8089]
[1747650449485,20.71805911,2406.2,2405.8,0.8089]
[1747650449779,4.15593051,2406.2,2405.8,0.8089]
[1747650449977,4.15610891,2406.1,2405.8,0.8089]
[1747650450176,4.15593051,2406.2,2405.8,0.8089]
[1747650450177,4.15605589,2406.2,2405.8,0.8089]
[1747650450376,4.15611344,2406.1,2405.8,0.8089]
[1747650451473,12.40281226,2406.3,2405.8,0.8089]
[1747650451474,4.1563089,2406.0,2405.8,0.8089]
[1747650451667,8.247,2406.3,2405.8,0.8089]
[1747650451868,4.15644873,2405.9,2405.8,0.8089]
[1747650454279,4.15669271,2405.8,2405.4,4.15720537]
[1747650454485,4.15655823,2405.9,2405.5,0.825]
[1747650454785,4.15659939,2405.9,2405.5,0.825]
[1747650454961,4.15659939,2405.9,2405.5,4.98213135]
[1747650455781,4.15625652,2406.1,2405.6,4.65511778]
[1747650455993,4.15600695,2406.2,2405.8,0.8282]
[1747650456199,0.04151774,2406.1,2405.6,0.8282]
[1747650456345,4.15695658,2405.7,2405.6,0.8282]
[1747650457253,4.15695658,2405.7,2405.2,12.46563056]
[1747650457254,4.15698765,2405.6,2405.3,0.7684]
[1747650457888,4.15687307,2405.7,2405.3,0.7684]
[1747650459787,4.15706928,2405.6,2405.4,0.17133919]
[1747650459953,4.15713988,2405.5,2405.4,0.17133919]
[1747650460787,4.15706928,2405.6,2405.2,0.7641]
[1747650460960,4.15693636,2405.7,2405.2,4.92166663]
[1747650461164,4.15693636,2405.7,2405.2,4.9216776]
[1747650461387,4.15698803,2405.6,2405.2,4.9216776]
[1747650461761,4.15698803,2405.6,2405.3,0.17142044]
[1747650462263,8.241,2405.8,2405.3,0.17142044]
[1747650462467,4.15725378,2405.5,2405.3,0.17142044]
[1747650463082,4.15725378,2405.5,2405.2,0.7641]
[1747650463866,4.15730671,2405.5,2405.2,0.7641]
[1747650464988,4.15707416,2405.6,2405.2,0.7641]
[1747650465202,4.15707416,2405.6,2405.2,4.92168094]
[1747650465492,4.15707416,2405.6,2405.2,0.7641]
[1747650466057,4.15748555,2405.3,2405.2,0.7641]
[1747650466497,4.1576584,2405.2,2405.1,0.21675774]
[1747650466662,4.99332457,2405.2,2405.1,0.21675774]
[1747650467087,4.1576584,2405.2,2405.1,0.21675774]
[1747650467792,4.1576584,2405.2,2405.1,0.17210852]
[1747650467991,4.15748555,2405.3,2405.1,0.17210852]
[1747650468560,8.241,2405.2,2405.1,0.17210852]
[1747650469369,8.241,2405.2,2405.1,4.32993979]
[1747650469577,8.241,2405.2,2405.1,0.17210852]
[1747650470404,8.241,2405.2,2405.1,0.38886626]
[1747650470599,4.15749877,2405.3,2405.1,0.38886626]
[1747650470801,4.1576584,2405.2,2405.1,0.38886626]
[1747650471105,4.15736512,2405.4,2405.1,0.38886626]
[1747650471106,4.1575765,2405.3,2405.1,0.38886626]
[1747650471699,4.1575765,2405.3,2405.2,0.17210852]
[1747650475138,4.15720191,2405.5,2405.2,0.17210852]
[1747650475318,12.3991001,2405.6,2405.2,0.17210852]
[1747650475319,8.242,2405.6,2405.2,0.17210852]
[1747650475488,4.15748555,2405.3,2405.2,0.17210852]
[1747650475688,4.15739378,2405.4,2405.0,4.37469512]
[1747650475894,4.15722852,2405.5,2405.0,0.21675774]
[1747650476290,4.15722852,2405.5,2405.0,4.37461416]
[1747650476797,12.39804609,2405.6,2405.2,4.99076744]
[1747650477730,12.39804609,2405.6,2405.2,0.8332]
[1747650478238,4.15721371,2405.5,2405.2,0.8332]
[1747650478536,4.15738213,2405.4,2405.2,0.8332]
[1747650478690,4.15723594,2405.5,2405.2,0.8332]
[1747650478890,4.15723594,2405.5,2405.3,0.17201517]
[1747650479433,4.15731271,2405.4,2405.3,0.17201517]
[1747650480547,5.68722959,2405.4,2405.3,0.17201517]
[1747650480900,5.72874733,2405.4,2405.3,0.17201517]
[1747650481849,5.68722959,2405.4,2405.3,0.17201517]
[1747650482012,4.15722974,2405.5,2405.3,0.17201517]
[1747650482342,4.15722974,2405.5,2405.3,0.97231517]
[1747650482343,4.15731271,2405.4,2405.3,0.97231517]
[1747650482547,4.15731271,2405.4,2405.3,0.17201517]
[1747650483049,4.15731271,2405.4,2405.3,0.17121517]
[1747650483214,6.78212131,2405.4,2405.3,0.17121517]
[1747650483751,6.82363905,2405.4,2405.3,0.17121517]
[1747650484602,6.81405414,2405.4,2405.3,0.17121517]
[1747650484897,8.71507381,2405.4,2405.3,0.17121517]
[1747650485236,8.67355607,2405.4,2405.3,0.17121517]
[1747650485597,6.7725364,2405.4,2405.3,0.17121517]
[1747650485802,4.1477278,2405.4,2405.3,0.17121517]
[1747650486137,9.001,2405.7,2405.3,0.17121517]
[1747650486138,12.39696121,2405.7,2405.3,0.17121517]
[1747650486345,4.15699191,2405.6,2405.3,0.17121517]
[1747650487000,4.15729907,2405.5,2405.3,0.17121517]
[1747650487231,4.15729907,2405.5,2405.3,0.21675774]
[1747650487433,4.15729907,2405.5,2405.4,0.23342592]
[1747650488450,8.24,2405.8,2405.4,4.39058535]
[1747650488602,12.39672381,2405.8,2405.5,1.27353431]
[1747650489120,4.15616415,2406.1,2405.5,1.27353431]
[1747650489433,0.8104,2406.8,2405.7,0.7518]
[1747650489629,4.15576835,2406.3,2405.9,4.15642048]
[1747650489828,4.15567325,2406.4,2405.9,4.15642048]
[1747650490147,16.48,2406.7,2406.0,0.7679]
[1747650490387,4.15566486,2406.4,2406.1,0.23342592]
[1747650490873,4.15587118,2406.3,2406.1,0.23342592]
[1747650491172,4.15587118,2406.3,2406.2,0.23342592]
[1747650492156,4.15549978,2406.5,2406.2,0.23342592]
[1747650492498,25.85691596,2406.9,2406.5,0.7964]
[1747650492499,0.1,2406.9,2406.5,0.7964]
[1747650492789,0.1,2406.9,2406.7,4.1550655]
[1747650492990,0.1,2406.9,2406.8,0.23342592]
[1747650493546,0.1,2406.9,2406.8,0.23259211]
[1747650494160,0.1,2406.9,2406.8,1.04349211]
[1747650494594,4.25472184,2406.9,2406.8,1.04349211]
[1747650494884,4.25472184,2406.9,2406.8,0.8109]
[1747650495069,4.25472184,2406.9,2406.8,0.98235413]
[1747650495476,4.25472184,2406.9,2406.8,0.17145413]
[1747650495782,0.1,2406.9,2406.8,0.17145413]
[1747650495984,4.25472184,2406.9,2406.8,0.17145413]
[1747650496286,4.25482568,2406.9,2406.6,0.8307]
[1747650496646,4.15490038,2406.8,2406.6,0.8307]
[1747650498685,4.254798,2406.9,2406.6,0.8307]
[1747650498888,4.15489704,2406.8,2406.6,0.8307]
[1747650499585,4.15497799,2406.8,2406.6,0.8307]
[1747650499891,4.154991,2406.8,2406.4,0.7615]
[1747650500093,0.1,2406.9,2406.4,2.49290755]
[1747650500250,0.1,2406.9,2406.8,4.91639446]
[1747650500451,0.1,2406.9,2406.8,12.9579396]
[1747650500784,0.1,2406.9,2406.8,17.22800582]
[1747650500984,0.1,2406.9,2406.8,9.22800582]
[1747650501183,4.25472184,2406.9,2406.8,0.23150582]
[1747650501386,0.1,2406.9,2406.6,0.7969]
[1747650501553,4.25480869,2406.9,2406.6,0.7969]
[1747650502175,4.15492641,2406.8,2406.6,0.7969]
[1747650502362,0.1,2406.9,2406.6,0.7969]
[1747650502563,0.1,2406.9,2406.6,4.95204558]
[1747650502789,0.1,2406.9,2406.6,0.7969]
[1747650502969,4.25476799,2406.9,2406.6,0.7969]
[1747650503287,4.25481016,2406.9,2406.6,0.7969]
[1747650503592,4.15499194,2406.8,2406.3,8.7814]
[1747650503897,0.1,2406.9,2406.4,4.15549432]
[1747650504066,4.15489446,2406.8,2406.3,10.3161473]
[1747650504264,4.15494559,2406.8,2406.3,14.47189189]
[1747650504571,4.15529225,2406.6,2406.3,10.3161473]
[1747650504777,0.1,2406.9,2406.3,14.47189133]
[1747650504984,0.1,2406.9,2406.4,0.17089841]
[1747650505200,4.15507908,2406.7,2406.4,0.17089841]
[1747650505378,4.15499393,2406.8,2406.4,2.87415738]
[1747650505682,4.25476937,2406.9,2406.4,7.02974021]
[1747650505683,4.25477464,2406.9,2406.4,7.02974021]
[1747650505889,4.25478783,2406.9,2406.5,4.15540844]
[1747650506089,4.15489656,2406.8,2406.4,6.8588418]
[1747650506386,0.1,2406.9,2406.5,4.15539333]
[1747650506554,4.25474927,2406.9,2406.5,4.15539333]
[1747650506751,0.1,2406.9,2406.5,4.94305799]
[1747650506954,0.1,2406.9,2406.8,4.15489446]
[1747650507351,0.1,2406.9,2406.8,4.97189446]
[1747650507901,0.1,2406.9,2406.8,5.20335182]
[1747650508861,0.1,2406.9,2406.8,5.37421996]
[1747650509201,0.1,2406.9,2406.8,6.90896726]
[1747650513074,0.1,2406.9,2406.8,2.52261544]
[1747650513269,0.1,2406.9,2406.8,0.17086814]
[1747650513270,4.29623958,2406.9,2406.8,0.17086814]
[1747650513474,4.25472184,2406.9,2406.8,0.17086814]
[1747650514086,4.25472184,2406.9,2406.5,0.21675774]
[1747650514778,0.1,2406.9,2406.7,4.1549944]
[1747650514973,0.1,2406.9,2406.7,5.00767868]
[1747650515399,0.1,2406.9,2406.7,0.85268428]
[1747650515915,0.1,2406.9,2406.6,4.15514063]
[1747650516598,0.1,2406.9,2406.8,4.15489446]
[1747650516805,0.1,2406.9,2406.8,4.92789446]
[1747650517296,0.1,2406.9,2406.8,5.0994179]
[1747650517613,0.1,2406.9,2406.8,22.153169]
[1747650517776,0.1,2406.9,2406.8,26.16973459]
[1747650518484,0.1,2407.9,2407.3,4.15402561]
[1747650518684,0.1,2407.9,2407.8,4.15316886]
[1747650518889,0.1,2407.9,2407.8,4.93236886]
[1747650519481,0.1,2407.9,2407.8,5.16457549]
[1747650519684,0.1,2407.9,2407.8,6.09636312]
[1747650519878,0.1,2407.9,2407.8,1.94319426]
[1747650520228,0.1,2407.9,2407.8,1.16399426]
[1747650520582,0.1,2407.9,2407.8,5.48868656]
[1747650521290,0.1,2407.9,2407.8,1.3355177]
[1747650522240,0.1,2407.9,2407.8,5.48868656]
[1747650522937,0.1,2407.9,2407.8,1.3355177]
[1747650523735,4.25299638,2407.9,2407.8,0.40373007]
[1747650524614,4.25299638,2407.9,2407.8,0.17152344]
[1747650525016,0.1,2407.9,2407.8,0.17152344]
[1747650526208,4.25299638,2407.9,2407.8,0.17152344]
[1747650527342,0.1,2407.9,2407.8,0.17152344]
[1747650527499,4.25299638,2407.9,2407.8,0.17152344]
[1747650528344,5.92250597,2407.9,2407.8,0.17152344]
[1747650529207,14.47250597,2407.9,2407.8,0.17152344]
[1747650529441,14.43098823,2407.9,2407.8,0.17152344]
[1747650529943,22.10698823,2407.9,2407.8,0.17152344]
[1747650530444,4.15419051,2407.3,2406.8,4.15482728]
[1747650530743,4.15419051,2407.3,2406.9,0.83098318]
[1747650531642,4.15419051,2407.3,2407.0,0.17124846]
[1747650532544,13.15412316,2407.4,2407.0,0.17124846]
[1747650532841,13.15412316,2407.4,2407.0,4.32578864]
[1747650533015,13.15412316,2407.4,2406.9,1.62268318]
[1747650533016,4.92812316,2407.4,2407.1,0.17124846]
[1747650533221,13.15412316,2407.4,2407.1,0.17124846]
[1747650533419,9.0002,2407.4,2407.1,0.17124846]
[1747650533620,12.37988161,2407.4,2407.1,0.17124846]
[1747650534149,4.15407667,2407.3,2407.1,0.17124846]
[1747650534951,4.15407667,2407.3,2407.0,0.17124846]
[1747650535263,12.37988142,2407.4,2407.0,4.32578789]
[1747650535442,4.15404866,2407.3,2407.0,0.17124846]
[1747650535643,8.226,2407.4,2407.0,4.32570618]
[1747650535842,4.15372894,2407.5,2407.0,4.32570618]
[1747650536058,4.15385988,2407.4,2407.0,5.33600862]
[1747650536434,9.01,2407.6,2407.0,5.33600862]
[1747650536636,12.37971753,2407.5,2407.1,0.40357022]
[1747650536841,4.15388116,2407.4,2407.1,0.40357022]
[1747650537656,12.37971753,2407.5,2407.2,0.23232176]
[1747650537855,4.15387917,2407.4,2407.2,0.23232176]
[1747650538153,4.15345675,2407.7,2407.2,0.40357022]
[1747650538321,4.15345675,2407.7,2407.2,0.96039261]
[1747650538322,4.15351135,2407.7,2407.2,0.96039261]
[1747650538518,4.15378779,2407.5,2407.3,0.23232176]
[1747650538718,4.15361793,2407.6,2407.3,0.23232176]
[1747650539357,4.15361793,2407.6,2407.4,0.17124846]
[1747650539959,0.7868,2407.8,2407.4,0.17124846]
[1747650540138,12.47911279,2407.9,2407.5,0.23230037]
[1747650540456,4.15317419,2407.8,2407.5,0.76805818]
[1747650540653,4.15317419,2407.8,2407.5,0.23230037]
[1747650540858,4.25309397,2407.9,2407.6,0.23230037]
[1747650541359,4.15318768,2407.8,2407.4,12.95391325]
[1747650541555,4.25309103,2407.9,2407.4,12.95391325]
[1747650541747,4.15319597,2407.8,2407.4,12.95391325]
[1747650541949,4.25308384,2407.9,2407.5,1.88213271]
[1747650542464,4.15323223,2407.8,2407.5,1.88213271]
[1747650542827,4.25308607,2407.9,2407.5,6.03581003]
[1747650543160,4.25308766,2407.9,2407.5,1.88213271]
[1747650543456,4.15323351,2407.8,2407.6,0.23227521]
[1747650543663,4.15323351,2407.8,2407.6,1.91045903]
[1747650544260,4.15323351,2407.8,2407.6,1.67818382]
[1747650544760,0.796,2407.7,2407.2,0.55682239]
[1747650544926,4.15351684,2407.6,2407.2,4.71092414]
[1747650545129,4.15344986,2407.7,2407.3,1.01078408]
[1747650545470,0.9316,2407.9,2407.4,4.15371954]
[1747650545471,0.1,2407.9,2407.4,4.15371954]
[1747650545626,0.1,2407.9,2407.5,4.67004536]
[1747650545833,4.15348532,2407.7,2407.6,0.23238408]
[1747650546069,4.15348532,2407.7,2407.6,0.40383265]
[1747650546675,4.15348532,2407.7,2407.6,0.17144857]
[1747650546875,4.91308532,2407.7,2407.6,0.17144857]
[1747650547262,4.95460306,2407.7,2407.6,0.17144857]
[1747650547642,4.15385893,2407.4,2407.3,0.23253492]
[1747650547840,4.19537667,2407.4,2407.3,0.23253492]
[1747650548043,4.15385893,2407.4,2407.3,0.23253492]
[1747650548241,4.15442541,2407.1,2406.7,0.8108]
[1747650548641,4.15456108,2407.0,2406.7,0.8108]
[1747650548837,8.223,2407.0,2406.8,0.17152764]
[1747650549073,12.37766738,2407.0,2406.8,0.40409481]
[1747650549387,12.37756469,2407.0,2406.8,0.17152764]
[1747650550474,12.37756469,2407.0,2406.9,0.17152764]
[1747650551747,4.15500436,2406.8,2406.4,8.7576]
[1747650551948,4.15482185,2406.9,2406.5,0.23259714]
[1747650552149,12.37762392,2407.0,2406.5,4.38792029]
[1747650552480,12.37763119,2407.0,2406.5,4.38792756]
[1747650552787,8.223,2407.0,2406.6,4.3877985]
[1747650552979,8.223,2407.0,2406.7,0.17152912]
[1747650553183,12.37755062,2407.0,2406.7,0.17152912]
[1747650553377,8.223,2407.0,2406.7,4.3265918]
[1747650553583,4.15448135,2407.1,2406.8,0.23259714]
[1747650553794,4.46088986,2407.5,2406.9,0.8122]
[1747650553795,12.37696102,2407.4,2406.9,0.8122]
[1747650553948,12.37696102,2407.4,2406.9,4.96677031]
[1747650554148,4.15406102,2407.3,2406.9,4.96677031]
[1747650554449,4.15406102,2407.3,2407.0,0.23259714]
[1747650554965,8.223,2407.4,2407.0,4.38709881]
[1747650555173,8.223,2407.4,2407.1,1.10693032]
[1747650555374,8.223,2407.4,2407.2,0.23259714]
[1747650555788,8.223,2407.4,2407.3,0.17152912]
[1747650556555,12.37685893,2407.4,2407.3,0.17152912]
[1747650556758,12.37685893,2407.4,2407.3,0.40421751]
[1747650561595,4.15378249,2407.5,2407.3,0.40421751]
[1747650561967,4.15378249,2407.5,2407.4,0.40421751]
[1747650563165,6.36715686,2407.5,2407.4,0.40421751]
[1747650563360,6.32563912,2407.5,2407.4,0.17152912]
[1747650563798,6.36715686,2407.5,2407.4,0.17152912]
[1747650564207,6.32563912,2407.5,2407.4,0.17152912]
[1747650564499,4.15378249,2407.5,2407.4,0.17152912]
[1747650565397,4.94311389,2407.5,2406.9,0.17152912]
[1747650565602,4.1541997,2407.3,2406.9,0.17152912]
[1747650565805,4.15418104,2407.3,2406.9,0.17152912]
[1747650565970,4.15418104,2407.3,2407.0,0.23282736]
[1747650566171,4.15427182,2407.2,2407.0,0.23282736]
[1747650566587,4.15427182,2407.2,2407.1,0.40435648]
[1747650569417,4.15427182,2407.2,2407.1,0.40432909]
[1747650570379,4.15407532,2407.3,2407.1,0.40432909]
[1747650570579,4.15395093,2407.4,2407.1,0.40432909]
[1747650570793,4.15408968,2407.3,2407.1,0.40432909]
[1747650570993,4.15399288,2407.4,2407.1,1.20782909]
[1747650571195,4.15402105,2407.4,2407.2,0.17152912]
[1747650571430,4.15402105,2407.4,2407.3,0.23279997]
[1747650573015,4.15402105,2407.4,2407.3,0.40432909]
[1747650573215,6.62949348,2407.4,2407.3,0.40432909]
[1747650573917,4.15402105,2407.4,2407.3,0.40432909]
[1747650574412,4.1537771,2407.5,2407.3,0.40432909]
[1747650574619,4.15385893,2407.4,2407.3,0.23279997]
[1747650574823,4.15385893,2407.4,2406.9,4.15465326]
[1747650574997,4.1537771,2407.5,2407.0,4.15447244]
[1747650575193,4.15377986,2407.5,2407.2,0.8106]
[1747650575717,4.15377986,2407.5,2407.3,0.23306223]
[1747650576315,4.15377986,2407.5,2407.4,0.23306223]
[1747650577320,4.15377986,2407.5,2407.4,0.40496578]
[1747650578120,16.446,2407.6,2407.4,0.40496578]
[1747650578298,20.59960847,2407.6,2407.4,0.40496578]
[1747650578502,4.15368639,2407.5,2407.4,0.40496578]
[1747650578801,4.15368639,2407.5,2407.4,0.17190355]
[1747650578985,20.59954921,2407.6,2407.4,0.17190355]
[1747650579820,4.15368639,2407.5,2407.4,0.17190355]
[1747650580016,4.15368639,2407.5,2407.2,0.8106]
[1747650580222,4.15368639,2407.5,2407.4,0.233156]
[1747650581290,4.15368639,2407.5,2407.4,0.40511323]
[1747650584590,4.15340414,2407.7,2407.4,0.40511323]
[1747650584809,4.1536518,2407.6,2407.5,0.233156]
[1747650586130,4.1536518,2407.6,2407.5,0.40511323]
[1747650588226,4.9812518,2407.6,2407.5,0.40511323]
[1747650588424,5.43995171,2407.6,2407.5,0.40511323]
[1747650590197,4.9812518,2407.6,2407.5,0.40511323]
[1747650590529,4.1536518,2407.6,2407.5,0.40511323]
[1747650590734,12.3676518,2407.6,2407.5,0.40511323]
[1747650595231,8.211,2407.6,2407.5,0.40511323]
[1747650595437,8.211,2407.7,2407.5,0.40511323]
[1747650595927,12.36724486,2407.8,2407.6,0.233156]
[1747650596140,8.214,2407.8,2407.6,0.233156]
[1747650596308,0.1,2407.9,2407.6,0.68903428]
[1747650596497,0.1,2407.9,2407.7,0.17195723]
[1747650597114,4.25300673,2407.9,2407.7,0.17195723]
[1747650597316,4.25300673,2407.9,2407.8,0.233156]
[1747650597535,0.1,2407.9,2407.8,0.233156]
[1747650597739,0.1,2407.9,2407.8,1.009956]
[1747650597939,0.1,2407.9,2407.8,5.91421187]
[1747650598744,0.1,2407.9,2407.8,5.9140675]
[1747650600036,0.1,2407.9,2407.8,5.9139351]
[1747650600237,0.1,2407.9,2407.8,5.68105587]
[1747650600422,0.1,2407.9,2407.8,5.91394132]
[1747650603425,0.1,2407.9,2407.8,5.91384357]
[1747650604058,0.1,2407.9,2407.8,1.76067471]
[1747650604222,0.1,2407.9,2407.8,0.40474493]
[1747650604553,4.25299638,2407.9,2407.8,0.40474493]
[1747650604743,5.04711412,2407.9,2407.8,0.40474493]
[1747650604938,5.04711412,2407.9,2407.8,0.17195723]
[1747650605119,4.15360409,2407.6,2407.2,0.17195723]
[1747650605320,12.35976126,2407.5,2407.3,0.23277696]
[1747650605562,4.97425893,2407.4,2407.3,0.23277696]
[1747650605860,23.12573286,2407.4,2407.3,0.23277696]
[1747650606058,23.63421512,2407.4,2407.3,0.23277696]
[1747650606432,12.90543148,2407.3,2407.2,0.17195723]
[1747650606744,4.90543148,2407.3,2407.2,0.17195723]
[1747650606953,0.7514,2407.3,2406.5,4.15532728]
[1747650607136,0.7514,2407.3,2406.6,0.64819625]
[1747650607137,4.15470009,2407.0,2406.6,0.64819625]
[1747650607344,12.36070009,2407.0,2406.6,0.64819625]
[1747650607524,12.36070009,2407.0,2406.7,0.23266352]
[1747650607723,12.36070009,2407.0,2406.6,0.41553273]
[1747650608042,8.206,2407.0,2406.7,5.61723215]
[1747650608244,12.36042414,2407.1,2406.7,1.46223105]
[1747650608449,12.36042414,2407.1,2406.8,0.40404223]
[1747650608646,12.36042414,2407.1,2406.9,0.23261919]
[1747650608862,12.36042414,2407.1,2406.8,0.17142304]
[1747650609464,12.36042414,2407.1,2406.7,1.229586]
[1747650609465,4.15454923,2407.0,2406.9,0.40402026]
[1747650609763,4.15454923,2407.0,2406.9,0.40402446]
[1747650609940,4.15454923,2407.0,2406.9,0.17142304]
[1747650610527,4.15454923,2407.0,2406.7,0.7725]
[1747650610862,8.213,2407.3,2406.8,4.38747798]
[1747650611038,8.206,2407.2,2406.8,8.23258711]
[1747650611367,4.15472184,2406.9,2406.8,0.23258711]
[1747650611564,4.15472184,2406.9,2406.6,8.41553273]
[1747650611780,6.05233282,2407.1,2406.5,0.7965]
[1747650611989,4.15497616,2406.8,2406.5,0.7965]
[1747650612546,4.15497616,2406.8,2406.6,0.17136902]
[1747650612983,4.15468257,2407.0,2406.6,0.17136902]
[1747650613187,0.819,2407.2,2406.6,0.17136902]
[1747650613480,4.15439844,2407.1,2406.6,12.32653005]
[1747650613683,4.15439844,2407.1,2406.7,1.89920145]
[1747650614275,13.17829717,2407.2,2406.7,6.05413029]
[1747650614484,12.35929717,2407.2,2406.7,6.05413029]
[1747650614778,4.15463347,2407.0,2406.7,1.89920145]
[1747650614980,4.15463347,2407.0,2406.8,0.40385607]
[1747650615541,4.15472184,2406.9,2406.8,0.40385607]
[1747650615879,4.15472184,2406.9,2406.8,0.40383032]
[1747650616184,4.15440575,2407.1,2406.8,0.17136902]
[1747650616373,4.15440575,2407.1,2406.8,0.23237704]
[1747650616683,4.15455686,2407.0,2406.8,0.23237704]
[1747650616983,4.15472184,2406.9,2406.8,0.23237704]
[1747650617182,4.15464828,2407.0,2406.8,0.23237873]
[1747650617385,4.15482248,2406.9,2406.8,0.23237873]
[1747650617551,4.15530385,2406.6,2406.3,0.7826]
[1747650617750,4.15488325,2406.9,2406.4,4.15556364]
[1747650617946,0.7736,2407.3,2406.6,4.15508365]
[1747650618150,12.3582735,2407.2,2406.8,4.15487031]
[1747650618462,12.3582735,2407.2,2406.7,4.93759969]
[1747650618644,4.15442305,2407.1,2406.7,4.93759969]
[1747650618845,4.15442305,2407.1,2406.8,0.23236956]
[1747650619082,8.204,2407.2,2406.7,0.7826]
[1747650619298,14.29769587,2407.2,2406.4,8.215]
[1747650619497,4.15531294,2406.6,2406.4,8.215]
[1747650619807,0.7821,2407.0,2406.4,8.215]
[1747650620092,4.15486731,2406.9,2406.5,5.46879919]
[1747650620301,8.204,2407.0,2406.7,0.7961]
[1747650620892,8.204,2407.0,2406.6,4.15518958]
[1747650620893,4.15489446,2406.8,2406.5,1.31346184]
[1747650621066,8.204,2407.0,2406.4,9.0111]
[1747650621067,4.1550701,2406.7,2406.4,9.0111]
[1747650621262,4.15523507,2406.7,2406.2,8.7692]
[1747650621468,4.15523507,2406.7,2406.6,0.17118764]
[1747650623684,4.15533262,2406.6,2406.2,4.92512095]
[1747650623886,4.15533262,2406.6,2250.0,1.865]
[1747650623887,4.15610323,2406.1,2405.9,0.8323]
[1747650624092,4.15638755,2406.0,2405.5,0.8323]
[1747650624388,4.15638755,2406.0,2405.6,0.23188607]
[1747650624561,4.15620093,2406.1,2405.7,4.1567222]
[1747650624763,4.15620093,2406.1,2405.7,5.89451909]
[1747650624963,4.1557578,2406.3,2405.9,4.93244693]
[1747650625163,4.15615783,2406.1,2405.9,0.776]
[1747650625401,4.15620524,2406.1,2405.7,0.776]
[1747650625691,4.15619058,2406.1,2405.8,0.17110046]
[1747650626197,12.36061268,2406.4,2405.8,0.17110046]
[1747650626498,4.15618099,2406.1,2405.8,0.17110046]
[1747650626706,4.15618099,2406.1,2405.7,2.06930444]
[1747650627192,4.15630632,2406.0,2405.7,2.06930444]
[1747650627772,4.15617583,2406.1,2405.7,2.06930444]
[1747650628271,4.15617583,2406.1,2405.7,6.2260905]
[1747650629386,4.1560351,2406.2,2405.7,6.2260905]
[1747650629573,8.203,2406.2,2405.9,4.15632069]
[1747650629776,12.35893425,2406.2,2405.8,13.19485134]
[1747650630073,8.203,2406.2,2405.8,13.19485134]
[1747650631099,4.15618415,2406.1,2405.9,0.17101086]
[1747650631264,12.35897607,2406.2,2405.9,0.17101086]
[1747650631892,4.15610578,2406.1,2405.9,0.17101086]
[1747650632096,4.15627597,2406.0,2405.9,0.17101086]
[1747650632296,4.19779371,2406.0,2405.9,0.17101086]
[1747650632500,4.15659345,2405.9,2405.5,0.7679]
[1747650632797,12.35902332,2406.2,2405.7,4.15666287]